fUST/lending_fUST_20241213
["ID","MTS","AMOUNT","RATE_DAILY","PERIOD"]
[345120063,1734036646254,-500.0,0.00027671,7]
[345120064,1734036646264,-500.0,0.00027671,7]
[345120065,1734036646273,-500.0,0.00027671,7]
[345120066,1734036646283,-500.0,0.00027671,7]
[345120067,1734036646293,-107.09022493,0.00027671,7]
[345120068,1734036646860,-1673.68977507,0.00027671,7]
[345120069,1734036646870,-525.25,0.00027671,7]
[345120070,1734036646879,-500.0,0.00027671,7]
[345120071,1734036646889,-500.0,0.00027671,7]
[345120072,1734036646899,-500.0,0.00027671,7]
[345120073,1734036646909,-500.0,0.00027671,7]
[345120074,1734036646919,-500.0,0.00027671,7]
[345120075,1734036646928,-500.0,0.00027671,7]
[345120076,1734036646938,-500.0,0.00027671,7]
[345120077,1734036646947,-505.51,0.00027671,7]
[345120078,1734036646957,-573.28,0.00027671,7]
[345120079,1734036646966,-500.0,0.00027671,7]
[345120080,1734036646976,-500.0,0.00027671,7]
[345120081,1734036646985,-500.0,0.00027671,7]
[345120082,1734036646994,-722.6,0.00027671,7]
[345120083,1734036647004,-526.92,0.00027671,7]
[345120084,1734036647014,-500.0,0.00027671,7]
[345120085,1734036647023,-500.0,0.00027671,7]
[345120086,1734036647033,-629.52,0.00027671,7]
[345120087,1734036647043,-500.0,0.00027671,7]
[345120088,1734036647053,-543.22,0.00027671,7]
[345120089,1734036647063,-501.21,0.00027671,7]
[345120090,1734036647072,-1076.6,0.00027671,7]
[345120091,1734036647082,-500.0,0.00027671,7]
[345120092,1734036647091,-500.0,0.00027671,7]
[345120093,1734036647100,-500.0,0.00027671,7]
[345120094,1734036647110,-500.0,0.00027671,7]
[345120095,1734036647119,-500.0,0.00027671,7]
[345120096,1734036647129,-500.0,0.00027671,7]
[345120097,1734036647139,-1149.56,0.00027671,7]
[345120098,1734036647152,-1291.02,0.00027671,7]
[345120099,1734036647162,-519.72,0.00027671,7]
[345120100,1734036647171,-500.0,0.00027671,7]
[345120101,1734036647181,-500.0,0.00027671,7]
[345120102,1734036647190,-500.0,0.00027671,7]
[345120103,1734036647200,-500.0,0.00027671,7]
[345120104,1734036647209,-500.0,0.00027671,7]
[345120105,1734036647219,-562.0843247,0.00027671,7]
[345120106,1734036647229,-500.0,0.00027671,7]
[345120107,1734036647239,-543.84121575,0.00027671,7]
[345120108,1734036647379,-500.0,0.00027671,7]
[345120109,1734036647389,-500.0,0.00027671,7]
[345120110,1734036647399,-726.17,0.00027671,2]
[345120111,1734036647411,-916.38,0.00027671,7]
[345120112,1734036647421,-436.01,0.00027671,7]
[345120113,1734036647430,-500.0,0.00027671,7]
[345120114,1734036647439,-500.0,0.00027671,7]
[345120115,1734036647449,-1047.64,0.00027671,7]
[345120116,1734036647459,-500.0,0.00027671,7]
[345120117,1734036647469,-500.0,0.00027671,7]
[345120118,1734036647479,-571.66,0.00027671,7]
[345120119,1734036647489,-500.0,0.00027671,7]
[345120120,1734036647499,-500.0,0.00027671,7]
[345120121,1734036647509,-500.0,0.00027671,7]
[345120122,1734036647518,-246.8101177,0.00027671,7]
[345120123,1734036647528,-1595.29,0.00027671,7]
[345120124,1734036647539,-325.92515169,0.00027671,30]
[345120125,1734036647548,-500.0,0.00027671,7]
[345120126,1734036647557,-500.0,0.00027671,7]
[345120127,1734036647567,-500.0,0.00027671,7]
[345120128,1734036647576,-500.0,0.00027671,7]
[345120129,1734036647586,-500.99492026,0.00027671,7]
[345120130,1734036647595,-500.0,0.00027671,7]
[345120131,1734036647605,-529.82490259,0.00027671,7]
[345120132,1734036647615,-500.0,0.00027671,7]
[345120133,1734036647624,-500.0,0.00027671,2]
[345120134,1734036647633,-500.0,0.00027671,7]
[345120135,1734036647643,-500.0,0.00027671,7]
[345120136,1734036647656,-500.0,0.00027671,7]
[345120137,1734036647666,-500.0,0.00027671,7]
[345120138,1734036647679,-506.15,0.00027671,7]
[345120139,1734036647689,-500.0,0.00027671,7]
[345120140,1734036647698,-500.0,0.00027671,7]
[345120141,1734036647708,-500.0,0.00027671,7]
[345120142,1734036647718,-500.0,0.00027671,7]
[345120143,1734036647728,-500.0,0.00027671,7]
[345120144,1734036647738,-500.0,0.00027671,7]
[345120145,1734036647749,-500.0,0.00027671,7]
[345120146,1734036647759,-500.0,0.00027671,7]
[345120147,1734036647768,-529.14,0.00027671,7]
[345120148,1734036647778,-500.0,0.00027671,7]
[345120149,1734036647787,-435.72399553,0.00027671,7]
[345120150,1734036647797,-633.29,0.00027671,7]
[345120151,1734036647806,-500.0,0.00027671,7]
[345120152,1734036647816,-611.89,0.00027671,7]
[345120153,1734036647825,-500.0,0.00027671,7]
[345120154,1734036647836,-693.0,0.00027671,7]
[345120155,1734036647845,-500.0,0.00027671,7]
[345120156,1734036647855,-500.0,0.00027671,7]
[345120157,1734036647866,-500.0,0.00027671,7]
[345120158,1734036647876,-512.75,0.00027671,7]
[345120159,1734036647885,-500.0,0.00027671,7]
[345120160,1734036647895,-757.49,0.00027671,7]
[345120161,1734036647905,-500.67870843,0.00027671,7]
[345120162,1734036647914,-500.0,0.00027671,7]
[345120163,1734036647925,-600.16,0.00027671,7]
[345120164,1734036647935,-500.0,0.00027671,7]
[345120165,1734036647944,-644.01490174,0.00027671,7]
[345120166,1734036647954,-653.58,0.00027671,7]
[345120167,1734036647965,-500.0,0.00027671,7]
[345120168,1734036647974,-500.0,0.00027671,7]
[345120169,1734036647984,-500.0,0.00027671,7]
[345120170,1734036647993,-500.0,0.00027671,7]
[345120171,1734036648003,-894.75,0.00027671,7]
[345120172,1734036648012,-833.71,0.00027671,7]
[345120173,1734036648022,-500.0,0.00027671,7]
[345120174,1734036648031,-500.0,0.00027671,7]
[345120175,1734036648041,-500.0,0.00027671,7]
[345120176,1734036648051,-500.0,0.00027671,7]
[345120177,1734036648060,-500.0,0.00027671,7]
[345120178,1734036648069,-500.0,0.00027671,7]
[345120179,1734036648079,-500.0,0.00027671,7]
[345120180,1734036648088,-500.0,0.00027671,7]
[345120181,1734036648098,-516.00585487,0.00027671,7]
[345120182,1734036648107,-500.0,0.00027671,7]
[345120183,1734036648117,-500.0,0.00027671,7]
[345120184,1734036648127,-500.0,0.00027671,7]
[345120185,1734036648136,-500.0,0.00027671,7]
[345120186,1734036648146,-500.0,0.00027671,7]
[345120187,1734036648158,-500.0,0.00027671,7]
[345120188,1734036648168,-500.0,0.00027671,7]
[345120189,1734036648178,-500.0,0.00027671,7]
[345120190,1734036648187,-500.0,0.00027671,7]
[345120191,1734036648197,-1137.04,0.00027671,7]
[345120192,1734036648207,-500.0,0.00027671,7]
[345120193,1734036648216,-500.0,0.00027671,7]
[345120194,1734036648227,-500.0,0.00027671,7]
[345120195,1734036648236,-500.0,0.00027671,7]
[345120196,1734036648246,-500.0,0.00027671,7]
[345120197,1734036648255,-564.06631555,0.00027671,7]
[345120198,1734036648265,-500.0,0.00027671,7]
[345120199,1734036648275,-1000.0,0.00027671,7]
[345120200,1734036648285,-435.1596172,0.00027671,7]
[345120201,1734036648295,-500.0,0.00027671,7]
[345120202,1734036648304,-851.97,0.00027671,7]
[345120203,1734036648313,-1309.13,0.00027671,7]
[345120204,1734036648323,-500.0,0.00027671,7]
[345120205,1734036648332,-269.1621794,0.00027671,7]
[345120206,1734036648342,-500.0,0.00027671,7]
[345120207,1734036648351,-500.0,0.00027671,7]
[345120208,1734036648360,-500.0,0.00027671,7]
[345120209,1734036648370,-1162.0,0.00027671,7]
[345120210,1734036648379,-500.0,0.00027671,7]
[345120211,1734036648388,-2314.71,0.00027671,7]
[345120212,1734036648397,-500.0,0.00027671,7]
[345120213,1734036648408,-500.0,0.00027671,7]
[345120214,1734036648418,-500.0,0.00027671,7]
[345120215,1734036648427,-500.0,0.00027671,7]
[345120216,1734036648436,-500.0,0.00027671,7]
[345120217,1734036648445,-500.0,0.00027671,7]
[345120218,1734036648454,-500.0,0.00027671,7]
[345120219,1734036648464,-500.0,0.00027671,7]
[345120220,1734036648473,-500.0,0.00027671,7]
[345120221,1734036648483,-652.32,0.00027671,7]
[345120222,1734036648492,-870.85,0.00027671,7]
[345120223,1734036648501,-500.0,0.00027671,7]
[345120224,1734036648510,-500.0,0.00027671,7]
[345120225,1734036648519,-520.64,0.00027671,7]
[345120226,1734036648528,-500.0,0.00027671,7]
[345120227,1734036648537,-500.0,0.00027671,7]
[345120228,1734036648549,-758.21,0.00027671,7]
[345120229,1734036648564,-500.0,0.00027671,7]
[345120230,1734036648579,-504.34154404,0.00027671,7]
[345120231,1734036648591,-532.83,0.00027671,7]
[345120232,1734036648604,-500.0,0.00027671,7]
[345120233,1734036648618,-500.0,0.00027671,7]
[345120234,1734036648633,-500.0,0.00027671,7]
[345120235,1734036648647,-500.0,0.00027671,7]
[345120236,1734036648666,-2913.35,0.00027671,7]
[345120237,1734036648682,-514.7449421,0.00027671,7]
[345120238,1734036648696,-500.0,0.00027671,7]
[345120239,1734036648710,-500.0,0.00027671,7]
[345120240,1734036648726,-500.0,0.00027671,7]
[345120241,1734036648739,-500.0,0.00027671,7]
[345120242,1734036648751,-521.58,0.00027671,7]
[345120243,1734036648764,-1105.95,0.00027671,7]
[345120244,1734036648779,-500.0,0.00027671,7]
[345120245,1734036648795,-857.34,0.00027671,7]
[345120246,1734036648810,-502.50690389,0.00027671,2]
[345120247,1734036648824,-807.45,0.00027671,7]
[345120248,1734036648840,-617.21,0.00027671,7]
[345120249,1734036648851,-500.0,0.00027671,7]
[345120250,1734036648863,-169.83103224,0.00027671,7]
[345120251,1734036648877,-500.0,0.00027671,7]
[345120252,1734036648894,-500.0,0.00027671,7]
[345120253,1734036648907,-500.0,0.00027671,7]
[345120254,1734036648919,-196.62199234,0.00027671,7]
[345120255,1734036648934,-500.0,0.00027671,7]
[345120256,1734036648946,-500.0,0.00027671,7]
[345120257,1734036648957,-500.0,0.00027671,7]
[345120258,1734036648970,-500.0,0.00027671,7]
[345120259,1734036648982,-500.0,0.00027671,7]
[345120260,1734036648995,-500.0,0.00027671,7]
[345120261,1734036649008,-500.0,0.00027671,7]
[345120262,1734036649023,-500.0,0.00027671,7]
[345120263,1734036649035,-500.0,0.00027671,7]
[345120264,1734036649048,-500.0,0.00027671,7]
[345120265,1734036649061,-500.0,0.00027671,7]
[345120266,1734036649073,-500.0,0.00027671,7]
[345120267,1734036649086,-500.0,0.00027671,7]
[345120268,1734036649099,-500.0,0.00027671,7]
[345120269,1734036649112,-536.84525408,0.00027671,7]
[345120270,1734036649125,-500.0,0.00027671,7]
[345120271,1734036649138,-867.3,0.00027671,7]
[345120272,1734036649151,-500.0,0.00027671,7]
[345120273,1734036649164,-1032.58,0.00027671,7]
[345120274,1734036649177,-500.0,0.00027671,7]
[345120275,1734036649189,-500.0,0.00027671,7]
[345120276,1734036649201,-520.16,0.00027671,7]
[345120277,1734036649214,-500.0,0.00027671,7]
[345120278,1734036649228,-500.0,0.00027671,7]
[345120279,1734036649240,-500.0,0.00027671,7]
[345120280,1734036649252,-500.0,0.00027671,7]
[345120281,1734036649265,-500.0,0.00027671,7]
[345120282,1734036649277,-500.0,0.00027671,7]
[345120283,1734036649290,-500.0,0.00027671,7]
[345120284,1734036649303,-1022.99,0.00027671,7]
[345120285,1734036649315,-500.0,0.00027671,7]
[345120286,1734036649327,-500.0,0.00027671,7]
[345120287,1734036649338,-769.56,0.00027671,7]
[345120288,1734036649349,-500.0,0.00027671,7]
[345120289,1734036649360,-500.0,0.00027671,7]
[345120290,1734036649372,-500.0,0.00027671,7]
[345120291,1734036649383,-636.3,0.00027671,7]
[345120292,1734036649394,-500.0,0.00027671,7]
[345120293,1734036649407,-578.65,0.00027671,7]
[345120294,1734036649418,-500.0,0.00027671,7]
[345120295,1734036649429,-500.0,0.00027671,7]
[345120296,1734036649440,-848.23,0.00027671,7]
[345120297,1734036649451,-843.74,0.00027671,7]
[345120298,1734036649462,-500.0,0.00027671,7]
[345120299,1734036649474,-500.0,0.00027671,7]
[345120300,1734036649485,-500.0,0.00027671,7]
[345120301,1734036649496,-1606.77,0.00027671,7]
[345120302,1734036649507,-552.7,0.00027671,7]
[345120303,1734036649519,-500.0,0.00027671,7]
[345120304,1734036649529,-1292.17,0.00027671,7]
[345120305,1734036649541,-500.0,0.00027671,7]
[345120306,1734036649552,-618.93558719,0.00027671,7]
[345120307,1734036649563,-650.88,0.00027671,7]
[345120308,1734036649574,-528.52342858,0.00027671,7]
[345120309,1734036649586,-291.96256935,0.00027671,7]
[345120310,1734036649598,-500.0,0.00027671,7]
[345120311,1734036649610,-725.44,0.00027671,7]
[345120312,1734036649621,-500.0,0.00027671,7]
[345120313,1734036649632,-237.69762008,0.00027671,7]
[345120314,1734036649643,-500.75786992,0.00027671,7]
[345120315,1734036649656,-500.0,0.00027671,7]
[345120316,1734036649667,-696.0,0.00027671,7]
[345120317,1734036649679,-500.0,0.00027671,2]
[345120318,1734036649690,-845.91,0.00027671,7]
[345120319,1734036649701,-1999.58,0.00027671,7]
[345120320,1734036649712,-500.0,0.00027671,7]
[345120321,1734036649725,-439.07289476,0.00027671,7]
[345120322,1734036649736,-1958.05,0.00027671,7]
[345120323,1734036649749,-500.0,0.00027671,7]
[345120324,1734036649761,-512.15,0.00027671,7]
[345120325,1734036649773,-500.0,0.00027671,7]
[345120326,1734036649785,-500.0,0.00027671,7]
[345120327,1734036649797,-500.0,0.00027671,7]
[345120328,1734036649809,-538.77,0.00027671,7]
[345120329,1734036649821,-500.0,0.00027671,7]
[345120330,1734036649833,-1273.8,0.00027671,7]
[345120331,1734036649845,-613.98,0.00027671,7]
[345120332,1734036649857,-552.30872414,0.00027671,7]
[345120333,1734036649868,-1819.2,0.00027671,7]
[345120334,1734036649880,-1137.09,0.00027671,7]
[345120335,1734036649892,-500.0,0.00027671,7]
[345120336,1734036649905,-500.0,0.00027671,7]
[345120337,1734036649917,-500.0,0.00027671,7]
[345120338,1734036649928,-500.0,0.00027671,7]
[345120339,1734036649940,-500.0,0.00027671,7]
[345120340,1734036649951,-604.22,0.00027671,7]
[345120341,1734036649964,-500.0,0.00027671,7]
[345120342,1734036649975,-1099.87,0.00027671,7]
[345120343,1734036649987,-500.0,0.00027671,7]
[345120344,1734036649999,-937.23,0.00027671,7]
[345120345,1734036650009,-500.0,0.00027671,7]
[345120346,1734036650021,-500.0,0.00027671,7]
[345120347,1734036650032,-1099.27,0.00027671,7]
[345120348,1734036650043,-611.92,0.00027671,7]
[345120349,1734036650055,-1349.05,0.00027671,7]
[345120350,1734036650067,-552.15,0.00027671,7]
[345120351,1734036650080,-500.0,0.00027671,7]
[345120352,1734036650093,-500.0,0.00027671,7]
[345120353,1734036650106,-500.0,0.00027671,7]
[345120354,1734036650119,-500.0,0.00027671,7]
[345120355,1734036650132,-500.0,0.00027671,7]
[345120356,1734036650146,-500.0,0.00027671,7]
[345120357,1734036650161,-888.61,0.00027671,7]
[345120358,1734036650173,-500.0,0.00027671,7]
[345120359,1734036650185,-500.0,0.00027671,7]
[345120360,1734036650199,-2241.73,0.00027671,7]
[345120361,1734036650210,-868.5,0.00027671,7]
[345120362,1734036650221,-500.0,0.00027671,7]
[345120363,1734036650230,-500.0,0.00027671,7]
[345120364,1734036650241,-528.3,0.00027671,7]
[345120365,1734036650251,-500.0,0.00027671,7]
[345120366,1734036650262,-500.0,0.00027671,7]
[345120367,1734036650272,-500.0,0.00027671,7]
[345120368,1734036650282,-500.0,0.00027671,7]
[345120369,1734036650292,-500.0,0.00027671,7]
[345120370,1734036650303,-1000.32,0.00027671,7]
[345120371,1734036650313,-500.0,0.00027671,7]
[345120372,1734036650325,-2161.27,0.00027671,7]
[345120373,1734036650529,-500.0,0.00027671,7]
[345120374,1734036650554,-583.77,0.00027671,7]
[345120375,1734036650578,-500.0,0.00027671,7]
[345120376,1734036650589,-500.0,0.00027671,7]
[345120377,1734036650600,-500.0,0.00027671,7]
[345120378,1734036650610,-500.0,0.00027671,7]
[345120379,1734036650620,-983.5,0.00027671,7]
[345120380,1734036650630,-500.0,0.00027671,7]
[345120381,1734036650641,-972.54,0.00027671,7]
[345120382,1734036650650,-500.0,0.00027671,7]
[345120383,1734036650667,-500.0,0.00027671,7]
[345120384,1734036650681,-708.19,0.00027671,7]
[345120385,1734036650691,-518.25,0.00027671,7]
[345120386,1734036650702,-500.0,0.00027671,7]
[345120387,1734036650712,-500.0,0.00027671,7]
[345120388,1734036650723,-500.0,0.00027671,7]
[345120389,1734036650734,-500.0,0.00027671,7]
[345120390,1734036650744,-500.0,0.00027671,7]
[345120391,1734036650756,-584.13,0.00027671,7]
[345120392,1734036650767,-168.0,0.00027671,7]
[345120393,1734036650777,-500.0,0.00027671,7]
[345120394,1734036650788,-500.50275461,0.00027671,7]
[345120395,1734036650797,-987.39,0.00027671,7]
[345120396,1734036650807,-500.0,0.00027671,7]
[345120397,1734036650818,-500.0,0.00027671,7]
[345120398,1734036650828,-500.0,0.00027671,7]
[345120399,1734036650837,-980.67,0.00027671,7]
[345120400,1734036650847,-500.0,0.00027671,7]
[345120401,1734036650858,-560.35948219,0.00027671,7]
[345120402,1734036650869,-500.0,0.00027671,7]
[345120403,1734036650882,-500.0,0.00027671,7]
[345120404,1734036650892,-510.57822357,0.00027671,7]
[345120405,1734036650902,-500.0,0.00027671,7]
[345120406,1734036650913,-500.0,0.00027671,7]
[345120407,1734036650923,-500.0,0.00027671,7]
[345120408,1734036650933,-504.23719954,0.00027671,7]
[345120409,1734036650943,-582.03,0.00027671,7]
[345120410,1734036650953,-500.0,0.00027671,7]
[345120411,1734036650963,-500.0,0.00027671,7]
[345120412,1734036650974,-500.0,0.00027671,7]
[345120413,1734036650984,-500.0,0.00027671,7]
[345120414,1734036650993,-605.64,0.00027671,7]
[345120415,1734036651002,-724.02,0.00027671,7]
[345120416,1734036651012,-411.61017109,0.00027671,7]
[345120417,1734036651022,-1148.52,0.00027671,7]
[345120418,1734036651032,-500.0,0.00027671,7]
[345120419,1734036651043,-500.0,0.00027671,7]
[345120420,1734036651054,-500.0,0.00027671,7]
[345120421,1734036651064,-500.0,0.00027671,7]
[345120422,1734036651074,-1176.92,0.00027671,7]
[345120423,1734036651085,-500.0,0.00027671,7]
[345120424,1734036651095,-545.39569598,0.00027671,7]
[345120425,1734036651106,-500.0,0.00027671,7]
[345120426,1734036651117,-500.0,0.00027671,7]
[345120427,1734036651127,-500.0,0.00027671,7]
[345120428,1734036651138,-500.0,0.00027671,7]
[345120429,1734036651147,-845.09,0.00027671,7]
[345120430,1734036651159,-859.09,0.00027671,7]
[345120431,1734036651169,-502.66,0.00027671,7]
[345120432,1734036651179,-500.0,0.00027671,7]
[345120433,1734036651189,-1604.94,0.00027671,7]
[345120434,1734036651199,-500.0,0.00027671,7]
[345120435,1734036651209,-500.0,0.00027671,7]
[345120436,1734036651220,-500.0,0.00027671,7]
[345120437,1734036651230,-500.0,0.00027671,7]
[345120438,1734036651240,-500.0,0.00027671,7]
[345120439,1734036651249,-509.84,0.00027671,7]
[345120440,1734036651259,-683.7,0.00027671,7]
[345120441,1734036651269,-500.0,0.00027671,7]
[345120442,1734036651278,-500.0,0.00027671,7]
[345120443,1734036651288,-500.0,0.00027671,7]
[345120444,1734036651298,-500.0,0.00027671,7]
[345120445,1734036651307,-500.0,0.00027671,7]
[345120446,1734036651318,-583.79206673,0.00027671,7]
[345120447,1734036651328,-632.51159617,0.00027671,7]
[345120448,1734036651337,-500.0,0.00027671,7]
[345120449,1734036651347,-500.0,0.00027671,7]
[345120450,1734036651357,-919.8,0.00027671,7]
[345120451,1734036651367,-500.0,0.00027671,7]
[345120452,1734036651377,-1134.97,0.00027671,7]
[345120453,1734036651387,-500.0,0.00027671,7]
[345120454,1734036651397,-1396.07,0.00027671,7]
[345120455,1734036651411,-500.0,0.00027671,7]
[345120456,1734036651421,-313.46531693,0.00027671,7]
[345120457,1734036651430,-500.0,0.00027671,7]
[345120458,1734036651440,-2808.47,0.00027671,7]
[345120459,1734036651449,-500.0,0.00027671,7]
[345120460,1734036651459,-500.0,0.00027671,7]
[345120461,1734036651469,-996.24,0.00027671,7]
[345120462,1734036651478,-500.0,0.00027671,7]
[345120463,1734036651489,-506.33540802,0.00027671,7]
[345120464,1734036651499,-1121.74,0.00027671,7]
[345120465,1734036651509,-500.0,0.00027671,7]
[345120466,1734036651520,-509.90535465,0.00027671,7]
[345120467,1734036651530,-627.43,0.00027671,7]
[345120468,1734036651539,-500.0,0.00027671,7]
[345120469,1734036651550,-500.0,0.00027671,7]
[345120470,1734036651559,-513.72781372,0.00027671,7]
[345120471,1734036651569,-602.19,0.00027671,7]
[345120472,1734036651579,-500.0,0.00027671,7]
[345120473,1734036651589,-1946.1,0.00027671,7]
[345120474,1734036651599,-500.0,0.00027671,7]
[345120475,1734036651609,-500.0,0.00027671,7]
[345120476,1734036651619,-500.0,0.00027671,7]
[345120477,1734036651628,-500.0,0.00027671,7]
[345120478,1734036651639,-3674.08,0.00027671,7]
[345120479,1734036651648,-321.79302887,0.00027671,7]
[345120480,1734036651659,-1982.66,0.00027671,7]
[345120481,1734036651670,-502.91262054,0.00027671,7]
[345120482,1734036651682,-1388.22,0.00027671,7]
[345120483,1734036651692,-500.0,0.00027671,7]
[345120484,1734036651703,-500.0,0.00027671,7]
[345120485,1734036651713,-500.0,0.00027671,7]
[345120486,1734036651723,-548.2880862,0.00027671,7]
[345120487,1734036651732,-900.16,0.00027671,7]
[345120488,1734036651743,-500.0,0.00027671,7]
[345120489,1734036651754,-500.0,0.00027671,7]
[345120490,1734036651764,-537.27,0.00027671,7]
[345120491,1734036651774,-500.0,0.00027671,7]
[345120492,1734036651783,-500.0,0.00027671,7]
[345120493,1734036651794,-500.0,0.00027671,7]
[345120494,1734036651804,-579.09676038,0.00027671,7]
[345120495,1734036651814,-604.22,0.00027671,7]
[345120496,1734036651824,-500.0,0.00027671,7]
[345120497,1734036651834,-500.0,0.00027671,7]
[345120498,1734036651844,-1721.16,0.00027671,7]
[345120499,1734036651855,-523.42,0.00027671,7]
[345120500,1734036651867,-500.0,0.00027671,7]
[345120501,1734036651877,-1877.83,0.00027671,7]
[345120502,1734036651887,-500.0,0.00027671,7]
[345120503,1734036651897,-972.56,0.00027671,7]
[345120504,1734036651907,-1676.11,0.00027671,7]
[345120505,1734036651917,-500.0,0.00027671,7]
[345120506,1734036651927,-901.8,0.00027671,7]
[345120507,1734036651937,-539.0,0.00027671,7]
[345120508,1734036651947,-500.0,0.00027671,7]
[345120509,1734036651957,-500.0,0.00027671,7]
[345120510,1734036651967,-500.0,0.00027671,7]
[345120511,1734036651977,-500.0,0.00027671,7]
[345120512,1734036651987,-3808.44,0.00027671,7]
[345120513,1734036651997,-500.0,0.00027671,7]
[345120514,1734036652007,-1067.22,0.00027671,7]
[345120515,1734036652018,-500.0,0.00027671,7]
[345120516,1734036652027,-1019.33,0.00027671,7]
[345120517,1734036652037,-500.0,0.00027671,7]
[345120518,1734036652047,-500.0,0.00027671,7]
[345120519,1734036652056,-500.0,0.00027671,7]
[345120520,1734036652067,-500.0,0.00027671,7]
[345120521,1734036652077,-500.0,0.00027671,7]
[345120522,1734036652086,-7586.78,0.00027671,7]
[345120523,1734036652096,-500.0,0.00027671,7]
[345120524,1734036652105,-500.0,0.00027671,7]
[345120525,1734036652115,-1842.04,0.00027671,7]
[345120526,1734036652126,-1243.56,0.00027671,7]
[345120527,1734036652135,-786.73,0.00027671,7]
[345120528,1734036652145,-500.0,0.00027671,7]
[345120529,1734036652155,-500.0,0.00027671,7]
[345120530,1734036652165,-1010.83,0.00027671,7]
[345120531,1734036652175,-500.0,0.00027671,7]
[345120532,1734036652184,-667.75,0.00027671,7]
[345120533,1734036652193,-500.0,0.00027671,7]
[345120534,1734036652203,-500.0,0.00027671,7]
[345120535,1734036652212,-500.0,0.00027671,7]
[345120536,1734036652222,-500.0,0.00027671,7]
[345120537,1734036652231,-2576.05,0.00027671,7]
[345120538,1734036652241,-1532.78,0.00027671,7]
[345120539,1734036652251,-882.67,0.00027671,7]
[345120540,1734036652260,-1159.09,0.00027671,7]
[345120541,1734036652269,-594.02,0.00027671,7]
[345120542,1734036652279,-500.0,0.00027671,7]
[345120543,1734036652289,-803.86,0.00027671,7]
[345120544,1734036652298,-500.0,0.00027671,7]
[345120545,1734036652307,-640.46,0.00027671,7]
[345120546,1734036652317,-500.0,0.00027671,7]
[345120547,1734036652327,-500.0,0.00027671,7]
[345120548,1734036652337,-2108.17,0.00027671,7]
[345120549,1734036652346,-790.0,0.00027671,7]
[345120550,1734036652355,-500.0,0.00027671,7]
[345120551,1734036652365,-841.21,0.00027671,7]
[345120552,1734036652374,-500.0,0.00027671,7]
[345120553,1734036652383,-500.0,0.00027671,7]
[345120554,1734036652392,-500.0,0.00027671,7]
[345120555,1734036652402,-500.0,0.00027671,7]
[345120556,1734036652413,-784.13,0.00027671,7]
[345120557,1734036652423,-500.0,0.00027671,7]
[345120558,1734036652432,-500.0,0.00027671,7]
[345120559,1734036652442,-531.93084842,0.00027671,7]
[345120560,1734036652451,-500.0,0.00027671,7]
[345120561,1734036652461,-500.0,0.00027671,2]
[345120562,1734036652470,-521.60486264,0.00027671,7]